bitfinex/quotes_ETHUSD_20240717
["timestamp","ask_amount","ask_price","bid_price","bid_amount"]
[1721197861070,11.58957,3492.6,3492.5,0.005]
[1721197862986,8.72638,3492.6,3492.5,0.005]
[1721197864176,11.58957,3492.6,3492.5,0.005]
[1721197864487,13.3630867,3492.6,3492.5,0.005]
[1721197864701,16.2262767,3492.6,3492.5,0.005]
[1721197865322,5.72754,3491.9,3491.8,0.01]
[1721197865504,8.59131,3491.9,3491.8,0.01]
[1721197866088,5.72754,3491.9,3491.8,0.01]
[1721197867692,2.86377,3491.9,3491.8,0.01]
[1721197868480,2.86363,3492.1,3491.8,0.01]
[1721197868813,2.86369,3492.0,3491.8,0.01]
[1721197869002,2.86377,3491.9,3491.8,0.01]
[1721197869673,5.72754,3491.9,3491.8,0.01]
[1721197873730,8.59131,3491.9,3491.8,0.01]
[1721197874820,5.72754,3491.9,3491.8,0.01]
[1721197875411,6.586655,3491.9,3491.8,0.01]
[1721197876429,2.86349,3492.3,3491.8,2.4494]
[1721197877212,2.86361,3492.1,3491.8,2.4494]
[1721197878020,5.86331,3492.5,3491.8,0.01]
[1721197878208,2.86373,3492.0,3491.8,0.01]
[1721197878413,2.86355,3492.2,3491.9,2.3]
[1721197878720,2.8636,3492.1,3491.9,2.3]
[1721197880828,2.86368,3492.0,3491.9,2.3]
[1721197882936,2.86377,3491.9,3491.8,0.01]
[1721197883231,5.72754,3491.9,3491.8,0.01]
[1721197886441,8.59131,3491.9,3491.8,0.01]
[1721197888445,5.72754,3491.9,3491.8,0.01]
[1721197888629,6.8849268,3491.9,3491.8,0.01]
[1721197890419,9.7486968,3491.9,3491.8,0.01]
[1721197890638,12.7486968,3491.9,3491.8,0.01]
[1721197895353,15.6124668,3491.9,3491.8,0.01]
[1721197896409,15.6124668,3491.9,3491.4,1e-05]
[1721197896410,11.45636,3491.5,3491.4,1e-05]
[1721197896757,13.86636,3491.5,3491.4,1e-05]
[1721197897052,14.00227,3491.5,3491.4,1e-05]
[1721197897249,14.00227,3491.5,3490.5,0.1511227]
[1721197897250,16.86636,3491.5,3490.5,0.1511227]
[1721197897461,5.72966,3490.6,3490.5,0.1511227]
[1721197897610,6.830095,3490.6,3490.5,0.1511227]
[1721197897811,9.830095,3490.6,3490.5,0.1511227]
[1721197898011,5.86483,3490.6,3490.5,2.5913227]
[1721197898237,5.35695,3491.7,3490.5,2.5913227]
[1721197898238,2.86455,3491.0,3490.5,2.5913227]
[1721197898432,2.8646,3490.9,3490.5,2.5913227]
[1721197899743,2.86443,3491.1,3490.5,2.5913227]
[1721197899926,5.86454,3491.0,3490.5,2.5913227]
[1721197900455,2.8646,3490.9,3490.5,2.5913227]
[1721197901318,3.0,3491.0,3490.5,2.5913227]
[1721197901762,5.86451,3491.0,3490.5,2.5913227]
[1721197902749,2.86436,3491.2,3490.5,2.5913227]
[1721197903049,2.86428,3491.3,3490.5,2.5913227]
[1721197903251,2.86428,3491.3,3490.6,2.3066]
[1721197904056,2.86419,3491.4,3490.7,2.3437]
[1721197904426,2.86427,3491.3,3490.7,2.3437]
[1721197904943,2.86428,3491.3,3490.7,2.3437]
[1721197905117,2.86432,3491.3,3490.7,2.3437]
[1721197905317,2.86435,3491.2,3490.7,2.3437]
[1721197906436,2.86424,3491.4,3490.7,2.3437]
[1721197907724,2.86427,3491.3,3490.7,2.3437]
[1721197909852,2.86415,3491.5,3490.7,2.3437]
[1721197910082,2.86401,3491.6,3490.9,2.86458]
[1721197910260,2.86401,3491.6,3491.0,2.479]
[1721197911073,2.86394,3491.7,3491.0,2.479]
[1721197911277,3.0,3491.6,3491.0,2.479]
[1721197911840,5.86401,3491.6,3491.0,2.479]
[1721197912647,3.0,3491.6,3491.0,5.3435]
[1721197912907,3.0,3491.7,3491.1,2.3733]
[1721197913753,5.86394,3491.7,3491.1,2.3733]
[1721197914071,8.606719,3491.7,3491.1,2.3733]
[1721197916359,5.86394,3491.7,3491.1,2.3733]
[1721197917938,3.0,3491.7,3491.1,2.3733]
[1721197918142,2.86434,3491.2,3490.6,2.3405]
[1721197919164,2.86451,3491.0,3490.6,2.3405]
[1721197919368,2.86434,3491.2,3490.6,2.3405]
[1721197919571,2.86459,3490.9,3490.6,2.3405]
[1721197921089,2.8645,3491.0,3490.6,2.3405]
[1721197921290,2.86441,3491.2,3490.6,2.3405]
[1721197922396,2.86423,3491.4,3490.6,2.3405]
[1721197922961,2.86387,3491.8,3490.7,2.3786]
[1721197923192,2.86411,3491.5,3490.7,2.3786]
[1721197923351,8.320337,3491.7,3490.8,2.3786]
[1721197923352,2.86404,3491.6,3490.8,2.3786]
[1721197924301,2.86411,3491.5,3490.8,2.3786]
[1721197925390,2.86435,3491.2,3490.8,2.3786]
[1721197925892,2.86452,3491.0,3490.8,2.3786]
[1721197926213,2.86459,3490.9,3490.8,2.3786]
[1721197926501,2.86459,3490.9,3490.5,0.1511227]
[1721197926502,2.86475,3490.8,3490.5,0.1511227]
[1721197926687,2.86459,3490.9,3490.5,0.1511227]
[1721197926688,2.86475,3490.7,3490.5,0.1511227]
[1721197927890,2.3601,3490.7,3490.5,0.1511227]
[1721197928104,2.86483,3490.6,3490.5,0.1511227]
[1721197928805,0.572887,3491.0,3490.5,0.1511227]
[1721197928971,2.86457,3491.0,3490.5,0.1511227]
[1721197930504,3.0,3491.5,3490.5,0.1511227]
[1721197930815,2.86435,3491.2,3490.5,0.1511227]
[1721197930971,5.86448,3491.1,3490.5,0.1511227]
[1721197931510,5.446595,3493.9,3490.5,0.1511227]
[1721197931511,2.86413,3491.5,3490.6,2.4807]
[1721197931736,2.86399,3491.7,3490.7,2.86475]
[1721197931907,2.86399,3491.7,3490.8,2.4855]
[1721197932076,2.86402,3491.6,3490.8,5.35015]
[1721197932705,18.7,3491.0,3490.8,5.35015]
[1721197933404,18.7,3491.0,3490.9,2.86459]
[1721197933576,18.7,3491.0,3490.9,5.35329]
[1721197935573,18.7,3491.0,3490.9,8.21788]
[1721197935717,18.7,3491.0,3490.9,9.2137593]
[1721197935874,18.7,3491.0,3490.9,3.4845793]
[1721197936080,18.7,3491.0,3490.9,2.4887]
[1721197940738,18.7,3491.0,3490.9,5.35329]
[1721197943516,18.7,3491.0,3490.9,2.4887]
[1721197944213,18.7,3491.0,3490.6,5.32482]
[1721197944536,18.7,3491.0,3490.7,2.86475]
[1721197945634,18.7,3491.0,3490.6,2.46]
[1721197945824,23.43457,3491.0,3490.5,0.1511227]
[1721197946030,21.56457,3491.0,3490.5,0.1511227]
[1721197946399,18.7,3491.0,3490.5,0.1511227]
[1721197947006,21.56452,3491.0,3490.5,0.1511227]
[1721197947537,18.7,3491.0,3490.5,0.1511227]
[1721197947746,18.7,3491.0,3490.5,3.0160327]
[1721197948083,18.7,3491.0,3490.6,2.471]
[1721197949240,18.7,3491.0,3490.5,0.1511227]
[1721197950751,21.56457,3491.0,3490.5,0.1511227]
[1721197953035,2.8646,3490.9,3490.5,0.1511227]
[1721197955348,21.56457,3491.0,3490.5,0.1511227]
[1721197955525,2.86467,3490.8,3490.5,0.1511227]
[1721197956481,18.7,3491.0,3490.5,0.1511227]
[1721197956482,13.38179,3490.6,3490.5,0.1511227]
[1721197956969,16.38179,3490.6,3490.5,0.1511227]
[1721197957756,11.10696,3490.6,3490.5,0.1511227]
[1721197957963,10.126834,3490.6,3490.5,0.1511227]
[1721197958254,12.991664,3490.6,3490.5,0.1511227]
[1721197958852,10.126834,3490.6,3490.5,0.1511227]
[1721197961548,12.991664,3490.6,3490.5,0.1511227]
[1721197961747,15.401664,3490.6,3490.5,0.1511227]
[1721197962077,18.266494,3490.6,3490.5,0.1511227]
[1721197962375,17.874364,3490.6,3490.5,0.1511227]
[1721197963956,12.536834,3490.6,3490.5,0.1511227]
[1721197965763,15.401664,3490.6,3490.5,0.1511227]
[1721197968859,10.126834,3490.6,3490.5,0.1511227]
[1721197969669,10.126834,3490.6,3490.5,0.1011227]
[1721197970211,8.72966,3490.6,3490.5,0.1011227]
[1721197971703,2.86483,3490.6,3490.5,0.1011227]
[1721197971881,2.86469,3490.8,3490.5,0.1011227]
[1721197972294,2.86469,3490.8,3490.6,2.4062]
[1721197972811,21.56453,3491.0,3490.6,2.4062]
[1721197972812,18.7,3491.0,3490.6,2.4062]
[1721197972973,18.7,3491.0,3490.6,5.27103]
[1721197974290,18.7,3491.0,3490.7,2.86474]
[1721197974968,2.86483,3490.6,3490.5,0.1011227]
[1721197975808,5.72966,3490.6,3490.5,0.1011227]
[1721197977110,11.59449,3490.6,3490.5,0.1011227]
[1721197977702,14.45932,3490.6,3490.5,0.1011227]
[1721197977921,18.862526,3490.6,3490.5,0.1011227]
[1721197979717,18.862526,3490.6,3490.5,2.7e-06]
[1721197980003,21.727356,3490.6,3490.5,2.7e-06]
[1721197980305,2.86616,3489.0,3488.4,2.3144]
[1721197980605,2.86596,3489.3,3488.4,2.3144]
[1721197980842,2.86576,3489.5,3488.4,2.3144]
[1721197981130,2.86582,3489.4,3488.6,2.86647]
[1721197981840,2.86574,3489.5,3488.7,2.86639]
[1721197982860,2.86558,3489.7,3488.6,2.86647]
[1721197983128,2.86581,3489.5,3488.6,2.86647]
[1721197983930,2.86582,3489.4,3488.6,2.86647]
[1721197984233,2.86608,3489.1,3488.4,2.3144]
[1721197984461,2.86581,3489.5,3488.6,2.86642]
[1721197984593,2.86532,3490.0,3488.6,2.86642]
[1721197984594,2.86538,3490.0,3489.1,2.3744]
[1721197984957,2.86549,3489.8,3489.1,2.3744]
[1721197985236,2.86564,3489.7,3489.1,2.3744]
[1721197985435,5.86546,3489.9,3489.1,2.3744]
[1721197985639,2.86519,3490.2,3489.1,2.3744]
[1721197985933,4.838286,3490.6,3489.1,5.24045]
[1721197985934,2.86527,3490.1,3489.1,5.24045]
[1721197986134,2.86508,3490.3,3489.3,2.86583]
[1721197986336,2.86517,3490.2,3489.4,2.8658]
[1721197986836,2.86526,3490.1,3489.1,5.24046]
[1721197987053,2.86561,3489.7,3489.1,2.3744]
[1721197987833,2.86547,3489.9,3489.1,2.3744]
[1721197988027,2.86534,3490.0,3489.1,2.3744]
[1721197988255,2.86558,3489.7,3489.1,2.3744]
[1721197988603,2.86545,3489.9,3489.1,2.3744]
[1721197989140,2.8655,3489.8,3489.1,2.3744]
[1721197989836,5.41,3490.7,3488.8,2.86629]
[1721197989837,3.0,3490.7,3489.6,2.86564]
[1721197990056,2.41,3491.7,3489.7,2.4637]
[1721197990198,21.5645,3491.0,3490.2,2.44]
[1721197990693,18.7,3491.0,3490.2,5.30515]
[1721197992102,21.56451,3491.0,3490.2,5.30515]
[1721197992240,18.7,3491.0,3490.2,5.30515]
[1721197992446,21.56451,3491.0,3490.2,2.44]
[1721197992749,2.86476,3490.7,3490.2,2.44]
[1721197993481,5.72925,3490.9,3490.2,2.44]
[1721197993647,2.8646,3490.9,3490.2,2.44]
[1721197993982,2.86468,3490.8,3490.2,2.44]
[1721197994679,2.86477,3490.7,3490.2,2.44]
[1721197994848,2.86524,3490.1,3489.2,10.25592]
[1721197995043,2.86524,3490.1,3489.3,5.20939]
[1721197995498,2.86524,3490.1,3489.4,2.86582]
[1721197995808,2.86509,3490.3,3489.4,2.86582]
[1721197996564,2.86476,3490.7,3489.6,2.86563]
[1721197996742,2.86476,3490.7,3489.7,5.16081]
[1721197996944,18.7,3491.0,3490.0,2.86526]
[1721197997444,18.7,3491.0,3490.1,2.86524]
[1721197997792,21.56456,3491.0,3490.1,2.86524]
[1721197997944,2.86464,3490.9,3490.1,2.86524]
[1721197998142,18.7,3491.0,3490.5,2.8649]
[1721197998643,18.7,3491.0,3490.6,5.12362]
[1721197999439,18.7,3491.0,3490.7,2.86469]
[1721197999653,18.7,3491.0,3490.7,5.72936]
[1721197999856,18.7,3491.0,3490.8,2.86466]
[1721198000819,18.7,3491.0,3490.6,2.2588]
[1721198001000,18.7,3491.0,3490.6,5.12363]
[1721198004912,18.7,3491.0,3490.6,2.2588]
[1721198005096,21.56453,3491.0,3490.6,2.2588]
[1721198005295,20.856453,3491.0,3490.1,2.3627]
[1721198005504,2.86464,3490.9,3490.1,2.3627]
[1721198005832,2.86485,3490.6,3490.1,2.3627]
[1721198006673,2.86492,3490.5,3490.1,2.3627]
[1721198007596,2.86492,3490.5,3489.7,2.3585]
[1721198007597,2.8651,3490.3,3489.7,2.3585]
[1721198007797,2.86489,3490.6,3489.8,2.86542]
[1721198008027,18.7,3491.0,3490.2,5.22359]
[1721198008187,21.56453,3491.0,3490.2,5.22359]
[1721198008597,18.7,3491.0,3490.3,2.86507]
[1721198010016,18.7,3491.0,3490.2,2.3585]
[1721198010181,21.56451,3491.0,3490.2,5.22359]
[1721198010521,18.7,3491.0,3490.4,2.86499]
[1721198011343,18.7,3491.0,3490.5,2.8649]
[1721198011857,18.7,3491.0,3490.7,2.86474]
[1721198012003,18.7,3491.0,3490.8,2.86459]
[1721198012554,18.7,3491.0,3490.7,2.4675]
[1721198013927,18.7,3491.0,3490.2,5.27194]
[1721198014132,18.7,3491.0,3490.2,2.4068]
[1721198014342,18.7,3491.0,3490.3,2.86506]
[1721198014528,2.86459,3490.9,3490.2,2.4068]
[1721198015141,20.856444,3491.0,3490.2,2.4068]
[1721198015350,21.56456,3491.0,3490.2,2.4068]
[1721198015705,2.86461,3490.9,3490.2,2.4068]
[1721198017024,0.47222134,3490.9,3490.2,2.4068]
[1721198017262,2.8649,3490.6,3490.2,2.4068]
[1721198018531,2.8649,3490.6,3489.7,2.306]
[1721198018532,2.86505,3490.4,3489.7,2.306]
[1721198018761,2.86505,3490.4,3489.7,5.306]
[1721198019854,2.86487,3490.6,3489.7,8.17156]
[1721198020173,2.86492,3490.5,3489.7,8.17156]
[1721198021327,2.86475,3490.7,3489.8,2.86546]
[1721198021733,2.86483,3490.6,3489.8,2.86546]
[1721198022134,2.86469,3490.8,3490.0,2.86527]
[1721198023466,18.7,3491.0,3490.2,2.4809]
[1721198023786,2.86466,3490.9,3490.2,2.4809]
[1721198024276,20.57,3491.0,3490.2,2.4809]
[1721198024277,2.86467,3490.8,3490.2,2.4809]
[1721198024870,20.57,3491.0,3490.2,2.4809]
[1721198025238,2.86483,3490.7,3490.2,2.4809]
[1721198025483,2.86484,3490.6,3490.2,2.4809]
[1721198026261,2.86467,3490.8,3490.2,2.4809]
[1721198026786,2.86476,3490.7,3490.2,2.4809]
[1721198028091,4.77085969,3490.8,3490.2,2.4809]
[1721198028252,2.86501,3490.4,3490.2,2.4809]
[1721198028988,2.86489,3490.6,3490.2,2.4809]
[1721198029159,2.86492,3490.5,3490.2,2.4809]
[1721198030150,8.26365897,3490.7,3490.2,2.4809]
[1721198030352,2.86484,3490.6,3490.2,2.4809]
[1721198030767,2.86492,3490.5,3490.2,2.4809]
[1721198033562,18.7,3491.0,3490.2,2.4809]
[1721198033563,2.86484,3490.6,3490.2,2.4809]
[1721198037613,2.86461,3490.9,3490.2,2.4809]
[1721198037920,2.8648,3490.7,3490.2,2.4809]
[1721198038125,2.86461,3490.9,3490.2,2.4809]
[1721198038331,2.86461,3490.9,3490.2,5.34601]
[1721198040183,2.86484,3490.6,3490.2,2.4809]
[1721198040510,0.286484,3490.5,3490.2,2.4809]
[1721198040821,2.8648,3490.7,3490.2,2.4809]
[1721198042425,2.86484,3490.6,3490.2,2.4809]
[1721198045229,2.8648,3490.7,3490.2,2.4809]
[1721198045431,2.86534,3490.0,3489.5,2.2792]
[1721198045631,2.86557,3489.7,3489.5,2.2792]
[1721198045839,2.86557,3489.7,3489.1,2.3828]
[1721198046232,2.86573,3489.6,3489.1,6.3828]
[1721198046431,2.86573,3489.6,3489.1,2.3828]
[1721198046735,2.86576,3489.5,3489.1,2.3828]
[1721198049058,0.573149,3489.5,3488.7,2.4195]
[1721198049217,2.3795,3489.7,3488.7,2.4195]
[1721198049419,2.86607,3489.1,3488.7,2.4195]
[1721198050600,2.86615,3489.0,3488.7,2.4195]
[1721198054233,2.86596,3489.3,3488.7,2.4195]
[1721198054234,2.86608,3489.1,3488.7,2.4195]
[1721198055631,2.86596,3489.3,3488.7,2.4195]
[1721198056032,5.73154,3489.5,3488.7,2.4195]
[1721198056233,2.86582,3489.4,3488.7,2.4195]
[1721198056433,0.573154,3489.5,3488.7,2.4195]
[1721198056434,2.86575,3489.5,3488.7,2.4195]
[1721198057626,2.86575,3489.5,3488.8,2.86631]
[1721198059133,2.86559,3489.7,3488.8,2.86631]
[1721198059434,0.286559,3489.6,3488.9,2.86621]
[1721198059641,2.86559,3489.7,3488.9,2.86621]
[1721198060128,18.7,3490.0,3489.1,2.496]
[1721198060328,18.7,3490.0,3489.3,2.86589]
[1721198060551,18.7,3490.0,3489.4,2.496]
[1721198061541,18.7,3490.0,3489.6,2.86564]
[1721198062068,18.7,3490.0,3489.7,2.496]
[1721198062866,18.7,3490.0,3489.9,2.86541]
[1721198063457,18.7,3490.0,3489.9,5.73082]
[1721198064984,18.7,3490.0,3489.9,8.16752]
[1721198065489,18.7,3490.0,3489.9,10.57752]
[1721198066035,18.7,3490.0,3489.9,13.57752]
[1721198067277,18.7,3490.0,3489.9,2.4367]
[1721198067850,18.7,3490.0,3489.5,2.86572]
[1721198067851,18.7,3490.0,3489.6,2.86559]
[1721198068051,23.18628141,3490.0,3488.9,2.2671]
[1721198068274,21.56533,3490.0,3489.3,2.8659]
[1721198068599,21.56533,3490.0,3489.2,2.86596]
[1721198068880,21.56533,3490.0,3489.3,2.8659]
[1721198069675,21.56533,3490.0,3489.1,2.86601]
[1721198069880,2.86541,3489.9,3489.1,2.86601]
[1721198070665,2.86541,3489.9,3489.2,2.86597]
[1721198070867,5.308474,3489.9,3489.2,2.86597]
[1721198071071,2.86559,3489.7,3488.9,2.2671]
[1721198071267,2.86568,3489.6,3488.9,2.2671]
[1721198071450,2.86568,3489.6,3488.9,5.13332]
[1721198071954,2.86568,3489.6,3488.7,2.86639]
[1721198072161,3.438857,3489.5,3488.7,2.86639]
[1721198072360,2.86574,3489.5,3488.7,2.86639]
[1721198072758,2.86574,3489.5,3488.8,2.8663]
[1721198073047,2.86574,3489.5,3488.6,2.86642]
[1721198073542,2.86574,3489.5,3488.7,2.86639]
[1721198073748,0.573133,3489.4,3488.7,2.86639]
[1721198074045,2.86582,3489.4,3488.5,5.34144]
[1721198074442,2.86582,3489.4,3488.7,2.86639]
[1721198076456,2.8657,3489.6,3488.8,2.86631]
[1721198077180,2.86577,3489.5,3488.8,2.86631]
[1721198077383,2.86577,3489.5,3488.7,2.86639]
[1721198077947,2.86559,3489.7,3488.8,2.8663]
[1721198078143,2.86567,3489.6,3488.8,2.8663]
[1721198078387,2.86562,3489.7,3488.8,2.8663]
[1721198078689,2.8657,3489.6,3488.8,2.8663]
[1721198079950,2.86549,3489.8,3488.9,2.3955]
[1721198080299,2.86549,3489.8,3488.9,5.26168]
[1721198080449,5.308574,3489.8,3489.0,2.86614]
[1721198080651,5.308574,3489.8,3489.1,2.86605]
[1721198081617,2.86549,3489.8,3489.1,2.86605]
[1721198082799,18.7,3490.0,3489.3,2.86589]
[1721198082951,18.7,3490.0,3489.5,2.86566]
[1721198083165,18.7,3490.0,3489.6,2.3357]
[1721198083458,18.7,3490.0,3489.6,5.20134]
[1721198083965,18.7,3490.0,3489.7,2.86556]
[1721198084367,18.7,3490.0,3489.8,2.86546]
[1721198084567,18.7,3490.0,3489.9,2.86541]
[1721198085408,18.7,3490.0,3489.9,5.73082]
[1721198091022,18.7,3490.0,3489.9,8.17612]
[1721198092326,18.7,3490.0,3489.9,16.45153]
[1721198093343,18.7,3490.0,3489.9,19.47053]
[1721198093833,18.10236754,3490.0,3489.9,19.47053]
[1721198096740,18.10236754,3490.0,3489.9,16.45153]
[1721198100034,18.10236754,3490.0,3489.9,19.47053]
[1721198104060,18.10236754,3490.0,3489.9,11.17612]
[1721198105049,18.10236754,3490.0,3489.9,17.06053]
[1721198105215,18.10236754,3490.0,3489.9,19.47053]
[1721198105753,18.10236754,3490.0,3489.9,2.86541]
[1721198108173,18.10236754,3490.0,3489.8,2.86549]
[1721198108678,18.10236754,3490.0,3489.9,2.86541]
[1721198108885,18.10236754,3490.0,3489.6,2.86563]
[1721198109036,18.10236754,3490.0,3489.8,2.86548]
[1721198110651,18.10236754,3490.0,3489.9,2.86541]
[1721198111746,18.10236754,3490.0,3489.9,5.73082]
[1721198114491,18.10236754,3490.0,3489.9,2.86541]
[1721198116194,18.10236754,3490.0,3489.9,5.73082]
[1721198116356,18.10236754,3490.0,3489.9,2.86541]
[1721198117289,18.10236754,3490.0,3489.9,5.73082]
[1721198119995,18.10236754,3490.0,3489.9,8.14542]
[1721198120413,18.10236754,3490.0,3489.9,9.15142]
[1721198122081,18.10236754,3490.0,3489.9,12.17042]
[1721198122283,18.10236754,3490.0,3489.9,13.16649395]
[1721198122487,18.10236754,3490.0,3489.9,12.17042]
[1721198124503,18.10236754,3490.0,3489.9,13.16652369]
[1721198124701,18.10236754,3490.0,3489.9,8.14542]
[1721198125005,18.10236754,3490.0,3489.9,6.73682]
[1721198126491,18.10236754,3490.0,3489.9,7.73294572]
[1721198126666,18.10236754,3490.0,3489.9,6.73682]
[1721198126864,18.10236754,3490.0,3489.9,7.73293964]
[1721198127103,18.10236754,3490.0,3489.9,6.73682]
[1721198127302,18.10236754,3490.0,3489.9,7.73293908]
[1721198128092,18.10236754,3490.0,3489.9,9.22712311]
[1721198128608,18.10236754,3490.0,3489.9,9.22710943]
[1721198129115,18.10236754,3490.0,3489.9,9.82809317]
[1721198131366,18.10236754,3490.0,3489.9,9.22710943]
[1721198131706,18.10236754,3490.0,3489.9,9.30307843]
[1721198134004,18.10236754,3490.0,3489.9,9.90406217]
[1721198134406,18.10236754,3490.0,3489.9,12.76947217]
[1721198134608,18.10236754,3490.0,3489.9,20.46063835]
[1721198134769,18.10236754,3490.0,3489.9,17.5668273]
[1721198135111,18.10236754,3490.0,3489.9,20.46045654]
[1721198135912,18.10236754,3490.0,3489.9,20.46045848]
[1721198136225,18.10236754,3490.0,3489.9,24.46045848]
[1721198137494,18.10236754,3490.0,3489.9,23.55898286]
[1721198138130,17.50474674,3490.0,3489.9,26.57788955]
[1721198138507,17.50474674,3490.0,3489.9,26.57788092]
[1721198139315,17.50474674,3490.0,3489.9,30.64525841]
[1721198140845,17.50474674,3490.0,3489.9,27.77984841]
[1721198141161,17.50474674,3490.0,3489.9,30.64525841]
[1721198141328,17.50474674,3490.0,3489.9,30.64522105]
[1721198141531,17.50474674,3490.0,3489.9,26.64522105]
[1721198141847,16.44241226,3490.0,3489.9,26.94616183]
[1721198142657,16.44241226,3490.0,3489.9,25.44325356]
[1721198144320,16.44241226,3490.0,3489.9,22.95319824]
[1721198144521,16.44241226,3490.0,3489.9,29.44297207]
[1721198145221,16.44241226,3490.0,3489.9,30.94479802]
[1721198147635,16.44241226,3490.0,3489.9,26.95319824]
[1721198147843,16.44241226,3490.0,3489.9,30.94447277]
[1721198149570,16.44241226,3490.0,3489.9,65.94447277]
[1721198149867,16.44241226,3490.0,3489.9,64.44297497]
[1721198150924,16.44241226,3490.0,3489.9,64.44297332]
[1721198154072,16.44241226,3490.0,3489.9,61.95319824]
[1721198154288,16.44241226,3490.0,3489.9,64.44294146]
[1721198156054,16.44241226,3490.0,3489.9,67.30835146]
[1721198157141,16.44241226,3490.0,3489.9,68.80901849]
[1721198157363,16.44241226,3490.0,3489.9,68.80906877]
[1721198159285,16.44241226,3490.0,3489.9,67.30834677]
[1721198159780,16.44241226,3490.0,3489.9,65.94365877]
[1721198159972,16.44241226,3490.0,3489.9,64.44293677]
[1721198160138,16.44241226,3490.0,3489.9,67.30834677]
[1721198160546,16.44241226,3490.0,3489.9,67.3083898]
[1721198160765,16.44241226,3490.0,3489.9,67.30838169]
[1721198160968,3.30277226,3490.0,3489.9,67.30838169]
[1721198161316,2.2912,3491.8,3491.7,2.86393]
[1721198161487,2.2912,3491.8,3491.7,3.86993]
[1721198161673,2.2912,3491.8,3491.7,3.9351953]
[1721198162015,2.86312,3492.7,3492.0,2.86368]
[1721198162200,2.3202,3492.8,3492.3,1.006]
[1721198162608,2.3202,3492.8,3492.5,1.006]
[1721198162983,2.3202,3492.8,3492.6,0.0647746]
[1721198164735,2.3202,3492.8,3492.2,2.8635]
[1721198165049,2.3202,3492.8,3492.7,0.06465202]
[1721198165183,3.3262,3492.8,3492.3,2.86343]
[1721198165494,3.3262,3492.8,3492.5,2.86326]
[1721198165495,2.3202,3492.8,3492.5,2.86326]
[1721198166024,2.3202,3492.8,3492.6,2.92788374]
[1721198166344,2.3915,3493.2,3492.7,2.86305]
[1721198166693,2.3915,3493.2,3492.8,0.06452137]
[1721198168923,2.3915,3493.2,3492.8,2.92753137]
[1721198169132,3.4557,3493.6,3492.9,2.86291]
[1721198169592,3.4557,3493.6,3493.0,0.06337702]
[1721198170204,3.4557,3493.6,3493.0,2.92623702]
[1721198170404,2.4497,3493.6,3493.0,2.92623702]
[1721198171988,2.4497,3493.6,3493.1,2.86278]
[1721198172194,2.4497,3493.6,3493.0,2.92623702]
[1721198172195,5.31209,3493.6,3493.0,0.06337702]
[1721198172434,2.4497,3493.4,3493.2,0.06321965]
[1721198172643,2.8627,3493.2,3493.1,0.06323369]
[1721198172839,2.8627,3493.2,3492.3,2.86343]
[1721198172840,2.86285,3493.1,3492.3,2.86343]
[1721198173009,1.006,3492.7,3492.3,2.86343]
[1721198173330,1.006,3492.9,3492.4,0.06144659]
[1721198173640,2.2936,3493.2,3492.4,0.06144659]
[1721198173868,2.2936,3493.2,3492.5,2.86322]
[1721198174031,2.909818,3493.2,3492.6,2.86318]
[1721198174338,2.909818,3493.2,3492.6,2.92452314]
[1721198174901,2.86291,3493.0,3492.6,0.06134314]
[1721198175114,2.86291,3493.0,3492.3,2.86343]
[1721198175320,2.86291,3493.0,3492.4,0.06144659]
[1721198175609,0.8635368,3493.0,3492.4,0.06144659]
[1721198176517,5.15636,3493.2,3492.5,2.86324]
[1721198176518,2.2936,3493.2,3492.5,2.86324]
[1721198176720,2.2936,3493.2,3492.6,0.05926708]
[1721198177814,2.2936,3493.2,3492.6,2.92244708]
[1721198178209,2.3827,3493.6,3492.7,2.86311]
[1721198178406,2.86245,3493.5,3492.7,2.86311]
[1721198178614,1.110747,3493.4,3492.8,0.05916365]
[1721198179029,5.24508,3493.6,3492.9,2.86293]
[1721198179355,5.24508,3493.6,3493.0,0.05906023]
[1721198179844,2.3094,3494.0,3493.0,0.05906023]
[1721198180174,2.3094,3494.0,3492.6,2.86319]
[1721198180175,2.3094,3493.3,3492.6,2.86319]
[1721198180675,2.3094,3493.3,3492.7,0.05921536]
[1721198180850,2.634087,3493.3,3492.7,0.05921536]
[1721198181047,2.86245,3493.6,3492.8,2.86303]
[1721198181394,2.86245,3493.6,3492.9,2.92203194]
[1721198181675,2.3094,3493.7,3493.0,2.86285]
[1721198181676,5.17169,3493.7,3493.0,2.86285]
[1721198182061,2.86216,3493.9,3493.2,2.86268]
[1721198182452,2.86203,3494.1,3493.3,5.26470513]
[1721198182653,3.678324,3494.0,3493.3,2.40210513]
[1721198182839,3.678324,3494.0,3493.3,0.05890513]
[1721198183983,3.678324,3494.0,3493.3,2.92150513]
[1721198184488,3.678324,3494.0,3493.3,0.05890513]
[1721198184775,2.86213,3493.9,3493.1,2.86272]
[1721198184937,3.7600234,3493.9,3493.4,0.05297876]
[1721198185137,3.7600234,3493.9,3493.2,2.86267]
[1721198185380,3.7600234,3493.9,3493.5,0.05292707]
[1721198185678,3.7600234,3493.9,3493.2,2.86267]
[1721198185834,3.7600234,3493.9,3493.6,0.05287538]
[1721198186039,0.37600234,3493.8,3493.2,2.86267]
[1721198186240,0.37600234,3493.8,3493.7,0.0528237]
[1721198186442,0.37600234,3493.8,3493.3,2.86261]
[1721198186640,0.37600234,3493.8,3493.7,0.0528237]
[1721198186865,0.37600234,3493.8,3493.3,2.86261]
[1721198187078,0.8978934,3493.9,3493.7,0.0528237]
[1721198187374,0.8978934,3493.9,3493.8,0.05277201]
[1721198187755,2.86203,3494.1,3493.3,2.86261]